[Event "Titled Tuesday Blitz November 01 Late 2022"]
[White "Hnydiuk, Aleksander"]
[Black "Papasimakopoulos, Alexandros"]
[WhiteFideId "1109057"]
[BlackFideId "4244125"]
[WhiteElo "2374"]
[BlackElo "2357"]
[Result "1-0"]
[Round "03"]
[TimeControl "180+1"]
[Date "2022.11.02"]
[WhiteClock "0:00:13"]
[BlackClock "0:00:09"]

1. d4 {[%clk 0:03:00]}  e6 {[%clk 0:02:53]} 2. g3 {[%clk 0:02:58]}  d5 {[%clk 0:02:52]} 3. Bg2 {[%clk 0:02:56]}  f5 {[%clk 0:02:52]} 4. Nh3 {[%clk 0:02:55]}  Nf6 {[%clk 0:02:52]} 5. O-O {[%clk 0:02:54]}  Bd6 {[%clk 0:02:38]} 6. Bf4 {[%clk 0:02:53]}  O-O {[%clk 0:02:30]} 7. c4 {[%clk 0:02:53]}  c6 {[%clk 0:02:22]} 8. Nd2 {[%clk 0:02:51]}  Ne4 {[%clk 0:02:14]} 9. Rc1 {[%clk 0:02:39]}  Bb4 {[%clk 0:02:03]} 10. a3 {[%clk 0:02:23]}  Ba5 {[%clk 0:02:00]} 11. b4 {[%clk 0:02:22]}  Bc7 {[%clk 0:02:00]} 12. Bxc7 {[%clk 0:02:19]}  Qxc7 {[%clk 0:02:00]} 13. Nf4 {[%clk 0:02:19]}  Qd6 {[%clk 0:01:55]} 14. Nxe4 {[%clk 0:02:01]}  fxe4 {[%clk 0:01:54]} 15. f3 {[%clk 0:02:01]}  exf3 {[%clk 0:01:49]} 16. exf3 {[%clk 0:01:59]}  Nd7 {[%clk 0:01:46]} 17. Re1 {[%clk 0:01:56]}  Rxf4 {[%clk 0:01:19]} 18. gxf4 {[%clk 0:01:56]}  Qxf4 {[%clk 0:01:19]} 19. Rxe6 {[%clk 0:01:51]}  Nf6 {[%clk 0:01:19]} 20. Re5 {[%clk 0:01:46]}  dxc4 {[%clk 0:01:19]} 21. Rxc4 {[%clk 0:01:42]}  Bf5 {[%clk 0:01:14]} 22. Qc1 {[%clk 0:01:33]}  Qxc1+ {[%clk 0:01:07]} 23. Rxc1 {[%clk 0:01:34]}  Bd7 {[%clk 0:00:58]} 24. f4 {[%clk 0:01:34]}  Kf8 {[%clk 0:00:53]} 25. d5 {[%clk 0:01:14]}  cxd5 {[%clk 0:00:51]} 26. Bxd5 {[%clk 0:01:15]}  Nxd5 {[%clk 0:00:51]} 27. Rxd5 {[%clk 0:01:16]}  Bc6 {[%clk 0:00:51]} 28. Re5 {[%clk 0:01:07]}  a6 {[%clk 0:00:48]} 29. Rd1 {[%clk 0:01:03]}  Kf7 {[%clk 0:00:45]} 30. Kf2 {[%clk 0:01:03]}  Rc8 {[%clk 0:00:40]} 31. h4 {[%clk 0:00:59]}  g6 {[%clk 0:00:37]} 32. Rd2 {[%clk 0:00:57]}  Bb5 {[%clk 0:00:31]} 33. Rc5 {[%clk 0:00:51]}  Rxc5 {[%clk 0:00:22]} 34. bxc5 {[%clk 0:00:51]}  Ke6 {[%clk 0:00:22]} 35. Rd6+ {[%clk 0:00:36]}  Kf5 {[%clk 0:00:22]} 36. Kg3 {[%clk 0:00:33]}  Bc6 {[%clk 0:00:20]} 37. Rd4 {[%clk 0:00:25]}  Ke6 {[%clk 0:00:20]} 38. h5 {[%clk 0:00:22]}  gxh5 {[%clk 0:00:15]} 39. Kh4 {[%clk 0:00:22]}  Bf3 {[%clk 0:00:15]} 40. Rd3 {[%clk 0:00:16]}  Bg4 {[%clk 0:00:12]} 41. Rb3 {[%clk 0:00:14]}  Kd5 {[%clk 0:00:09]} 42. Rxb7 {[%clk 0:00:14]}  Kxc5 {[%clk 0:00:10]} 43. Ra7 {[%clk 0:00:13]}  Be2 {[%clk 0:00:09]} 44. Rxh7 {[%clk 0:00:11]}  Kd6 {[%clk 0:00:10]} 45. Rxh5 {[%clk 0:00:10]}  Bxh5 {[%clk 0:00:06]} 46. Kxh5 {[%clk 0:00:11]}  Ke6 {[%clk 0:00:07]} 47. Kg6 {[%clk 0:00:11]}  Ke7 {[%clk 0:00:07]} 48. f5 {[%clk 0:00:12]}  Kf8 {[%clk 0:00:08]} 49. Kf6 {[%clk 0:00:11]}  a5 {[%clk 0:00:06]} 50. a4 {[%clk 0:00:11]}  Ke8 {[%clk 0:00:03]} 51. Kg7 {[%clk 0:00:11]}  Kd7 {[%clk 0:00:03]} 52. f6 {[%clk 0:00:12]}  Kd6 {[%clk 0:00:01]} 53. f7 {[%clk 0:00:13]}  Ke7 {[%clk 0:00:02]} 54. f8=Q+ {[%clk 0:00:13]}  Kd7 {[%clk 0:00:02]} 55. Qf5+ {[%clk 0:00:12]}  Ke7 {[%clk 0:00:03]} 56. Qxa5 {[%clk 0:00:12]}  Kd7 {[%clk 0:00:04]} 57. Qb5+ {[%clk 0:00:12]}  Kd6 {[%clk 0:00:05]} 58. a5 {[%clk 0:00:13]}  Kc7 {[%clk 0:00:06]} 59. a6 {[%clk 0:00:13]}  Kd6 {[%clk 0:00:06]} 60. a7 {[%clk 0:00:13]}  Kc7 {[%clk 0:00:07]} 61. a8=Q {[%clk 0:00:13]}  Kd6 {[%clk 0:00:08]} 62. Qaa6+ {[%clk 0:00:13]}  Ke7 {[%clk 0:00:09]} 63. Qbb7+ {[%clk 0:00:13]}  Kd8 {[%clk 0:00:09]} 64. Qaa8# {[%clk 0:00:13]} 1-0


[Site "https://www.chess.com"]

[Event "Titled Tuesday Blitz November 01 Late 2022"]
[White "Hua, Lefong"]
[Black "Postny, Evgeny"]
[WhiteFideId "2602253"]
[BlackFideId "2804344"]
[WhiteElo "2589"]
[BlackElo "2473"]
[Result "1-0"]
[Round "03"]
[TimeControl "180+1"]
[Date "2022.11.02"]
[WhiteClock "0:00:21"]
[BlackClock "0:00:09"]

1. d4 {[%clk 0:03:00]}  d5 {[%clk 0:02:59]} 2. c4 {[%clk 0:03:01]}  dxc4 {[%clk 0:02:59]} 3. Nf3 {[%clk 0:03:00]}  Nf6 {[%clk 0:02:58]} 4. e3 {[%clk 0:03:01]}  e6 {[%clk 0:02:59]} 5. Bxc4 {[%clk 0:03:01]}  a6 {[%clk 0:02:59]} 6. Bb3 {[%clk 0:03:00]}  b5 {[%clk 0:02:58]} 7. a4 {[%clk 0:02:58]}  Bb7 {[%clk 0:02:58]} 8. axb5 {[%clk 0:02:54]}  axb5 {[%clk 0:02:59]} 9. Rxa8 {[%clk 0:02:55]}  Bxa8 {[%clk 0:03:00]} 10. O-O {[%clk 0:02:54]}  c5 {[%clk 0:02:56]} 11. dxc5 {[%clk 0:02:52]}  Qxd1 {[%clk 0:02:53]} 12. Rxd1 {[%clk 0:02:53]}  Bxc5 {[%clk 0:02:53]} 13. Na3 {[%clk 0:02:49]}  b4 {[%clk 0:02:49]} 14. Ba4+ {[%clk 0:02:36]}  Ke7 {[%clk 0:02:43]} 15. Nc4 {[%clk 0:02:35]}  Rc8 {[%clk 0:02:31]} 16. Nfe5 {[%clk 0:02:20]}  Bd5 {[%clk 0:02:16]} 17. Bb5 {[%clk 0:02:12]}  Be4 {[%clk 0:01:44]} 18. Ba4 {[%clk 0:01:57]}  Bd5 {[%clk 0:01:23]} 19. Bb5 {[%clk 0:01:56]}  Ne8 {[%clk 0:01:15]} 20. b3 {[%clk 0:01:35]}  Nd6 {[%clk 0:01:09]} 21. Nxd6 {[%clk 0:01:28]}  Bxd6 {[%clk 0:01:10]} 22. Nc4 {[%clk 0:01:27]}  Bc5 {[%clk 0:01:05]} 23. Bb2 {[%clk 0:01:22]}  f6 {[%clk 0:01:03]} 24. Kf1 {[%clk 0:01:19]}  Nc6 {[%clk 0:00:59]} 25. Bxc6 {[%clk 0:01:16]}  Rxc6 {[%clk 0:00:52]} 26. Rc1 {[%clk 0:01:05]}  Ra6 {[%clk 0:00:42]} 27. Ra1 {[%clk 0:01:03]}  Rxa1+ {[%clk 0:00:41]} 28. Bxa1 {[%clk 0:01:04]}  e5 {[%clk 0:00:41]} 29. Nd2 {[%clk 0:00:55]}  Ke6 {[%clk 0:00:35]} 30. e4 {[%clk 0:00:54]}  Bc6 {[%clk 0:00:35]} 31. Ke2 {[%clk 0:00:53]}  Bb5+ {[%clk 0:00:34]} 32. Nc4 {[%clk 0:00:51]}  g6 {[%clk 0:00:34]} 33. f3 {[%clk 0:00:51]}  Bxc4+ {[%clk 0:00:23]} 34. bxc4 {[%clk 0:00:51]}  Bd4 {[%clk 0:00:24]} 35. Bxd4 {[%clk 0:00:50]}  exd4 {[%clk 0:00:25]} 36. Kd3 {[%clk 0:00:50]}  b3 {[%clk 0:00:25]} 37. f4 {[%clk 0:00:51]}  Kd6 {[%clk 0:00:25]} 38. g4 {[%clk 0:00:37]}  g5 {[%clk 0:00:16]} 39. fxg5 {[%clk 0:00:24]}  fxg5 {[%clk 0:00:15]} 40. h3 {[%clk 0:00:20]}  h6 {[%clk 0:00:14]} 41. Kd2 {[%clk 0:00:20]}  Kc5 {[%clk 0:00:12]} 42. e5 {[%clk 0:00:20]}  Kb4 {[%clk 0:00:07]} 43. e6 {[%clk 0:00:19]}  Ka3 {[%clk 0:00:07]} 44. e7 {[%clk 0:00:19]}  b2 {[%clk 0:00:08]} 45. e8=Q {[%clk 0:00:20]}  b1=Q {[%clk 0:00:08]} 46. Qa8+ {[%clk 0:00:19]}  Kb2 {[%clk 0:00:08]} 47. Qb8+ {[%clk 0:00:20]}  Ka1 {[%clk 0:00:09]} 48. Qxb1+ {[%clk 0:00:20]}  Kxb1 {[%clk 0:00:09]} 49. c5 {[%clk 0:00:21]} 1-0


[Site "https://www.chess.com"]

[Event "Titled Tuesday Blitz November 01 Late 2022"]
[White "Indjic, Aleksandar"]
[Black "Rorrer, Grayson"]
[WhiteFideId "911925"]
[BlackFideId "30944996"]
[WhiteElo "2592"]
[BlackElo "2130"]
[Result "1-0"]
[Round "03"]
[TimeControl "180+1"]
[Date "2022.11.01"]
[WhiteClock "0:01:07"]
[BlackClock "0:00:01"]

1. d4 {[%clk 0:03:00]}  Nf6 {[%clk 0:02:57]} 2. c4 {[%clk 0:03:00]}  e6 {[%clk 0:02:57]} 3. Nf3 {[%clk 0:03:00]}  Bb4+ {[%clk 0:02:57]} 4. Nbd2 {[%clk 0:02:58]}  b6 {[%clk 0:02:57]} 5. a3 {[%clk 0:02:58]}  Bxd2+ {[%clk 0:02:57]} 6. Qxd2 {[%clk 0:02:59]}  Bb7 {[%clk 0:02:57]} 7. b4 {[%clk 0:02:59]}  O-O {[%clk 0:02:57]} 8. Bb2 {[%clk 0:03:00]}  d5 {[%clk 0:02:57]} 9. e3 {[%clk 0:02:58]}  dxc4 {[%clk 0:02:55]} 10. Bxc4 {[%clk 0:02:57]}  Nbd7 {[%clk 0:02:55]} 11. O-O {[%clk 0:02:56]}  Qe7 {[%clk 0:02:54]} 12. Qe2 {[%clk 0:02:54]}  Rfd8 {[%clk 0:02:53]} 13. Rfc1 {[%clk 0:02:43]}  c5 {[%clk 0:02:45]} 14. dxc5 {[%clk 0:02:41]}  bxc5 {[%clk 0:02:46]} 15. b5 {[%clk 0:02:41]}  Ne4 {[%clk 0:02:36]} 16. a4 {[%clk 0:02:40]}  Bd5 {[%clk 0:02:19]} 17. a5 {[%clk 0:02:27]}  Nd6 {[%clk 0:02:18]} 18. Bd3 {[%clk 0:02:11]}  c4 {[%clk 0:02:09]} 19. Bb1 {[%clk 0:02:11]}  Nxb5 {[%clk 0:02:01]} 20. e4 {[%clk 0:02:11]}  Bc6 {[%clk 0:01:43]} 21. Rxc4 {[%clk 0:02:10]}  Rac8 {[%clk 0:01:39]} 22. Bd3 {[%clk 0:02:07]}  Nc5 {[%clk 0:01:25]} 23. Ne5 {[%clk 0:02:01]}  Nxd3 {[%clk 0:01:03]} 24. Nxc6 {[%clk 0:02:01]}  Qd7 {[%clk 0:01:04]} 25. Nxd8 {[%clk 0:01:44]}  Rxc4 {[%clk 0:01:02]} 26. Rd1 {[%clk 0:01:37]}  Qxd8 {[%clk 0:01:00]} 27. Rxd3 {[%clk 0:01:37]}  Qc8 {[%clk 0:00:58]} 28. Qg4 {[%clk 0:01:35]}  Nc3 {[%clk 0:00:35]} 29. h4 {[%clk 0:01:34]}  h6 {[%clk 0:00:23]} 30. Kh1 {[%clk 0:01:20]}  Rxe4 {[%clk 0:00:07]} 31. Qg3 {[%clk 0:01:14]}  Qc4 {[%clk 0:00:03]} 32. Rxc3 {[%clk 0:01:07]}  Rxh4+ {[%clk 0:00:01]} 33. Kg1 {[%clk 0:01:07]} 1-0


[Site "https://www.chess.com"]

[Event "Titled Tuesday Blitz November 01 Late 2022"]
[White "Itgelt, Khuyagtsogt"]
[Black "Becerra, Juan David"]
[WhiteFideId "4902912"]
[BlackFideId "4404998"]
[WhiteElo "2084"]
[BlackElo "2278"]
[Result "0-1"]
[Round "03"]
[TimeControl "180+1"]
[Date "2022.11.02"]
[WhiteClock "0:00:24"]
[BlackClock "0:00:12"]

1. e4 {[%clk 0:03:00]}  c5 {[%clk 0:02:33]} 2. Nf3 {[%clk 0:03:00]}  d6 {[%clk 0:02:33]} 3. d4 {[%clk 0:03:01]}  cxd4 {[%clk 0:02:33]} 4. Nxd4 {[%clk 0:03:02]}  Nf6 {[%clk 0:02:34]} 5. Nc3 {[%clk 0:03:02]}  a6 {[%clk 0:02:34]} 6. Bg5 {[%clk 0:03:01]}  e6 {[%clk 0:02:34]} 7. Qf3 {[%clk 0:03:01]}  h6 {[%clk 0:02:31]} 8. Bxf6 {[%clk 0:03:00]}  Qxf6 {[%clk 0:02:32]} 9. Qxf6 {[%clk 0:03:00]}  gxf6 {[%clk 0:02:33]} 10. Be2 {[%clk 0:03:01]}  Nc6 {[%clk 0:02:33]} 11. O-O-O {[%clk 0:02:57]}  h5 {[%clk 0:02:32]} 12. Kb1 {[%clk 0:02:54]}  Bd7 {[%clk 0:02:30]} 13. g3 {[%clk 0:02:42]}  h4 {[%clk 0:02:26]} 14. Nf3 {[%clk 0:02:30]}  h3 {[%clk 0:02:15]} 15. Na4 {[%clk 0:02:28]}  O-O-O {[%clk 0:02:01]} 16. Nb6+ {[%clk 0:02:26]}  Kc7 {[%clk 0:02:01]} 17. Nxd7 {[%clk 0:02:27]}  Kxd7 {[%clk 0:01:53]} 18. Nd2 {[%clk 0:02:17]}  Kc7 {[%clk 0:01:44]} 19. Nb3 {[%clk 0:02:16]}  Kb6 {[%clk 0:01:33]} 20. f4 {[%clk 0:02:06]}  Be7 {[%clk 0:01:30]} 21. Rd2 {[%clk 0:02:01]}  Rdg8 {[%clk 0:01:17]} 22. Rhd1 {[%clk 0:01:58]}  Kc7 {[%clk 0:01:13]} 23. a4 {[%clk 0:01:57]}  Kb6 {[%clk 0:01:11]} 24. c3 {[%clk 0:01:57]}  Kc7 {[%clk 0:01:02]} 25. Bf3 {[%clk 0:01:50]}  Bf8 {[%clk 0:00:54]} 26. Rd3 {[%clk 0:01:49]}  Be7 {[%clk 0:00:54]} 27. Nd2 {[%clk 0:01:49]}  b5 {[%clk 0:00:53]} 28. axb5 {[%clk 0:01:44]}  axb5 {[%clk 0:00:54]} 29. b4 {[%clk 0:01:43]}  Ra8 {[%clk 0:00:53]} 30. Nb3 {[%clk 0:01:42]}  Ra3 {[%clk 0:00:53]} 31. Kb2 {[%clk 0:01:42]}  Rha8 {[%clk 0:00:53]} 32. Ra1 {[%clk 0:01:43]}  Rxb3+ {[%clk 0:00:52]} 33. Kxb3 {[%clk 0:01:42]}  Rxa1 {[%clk 0:00:53]} 34. Bd1 {[%clk 0:01:42]}  Ra8 {[%clk 0:00:41]} 35. Bh5 {[%clk 0:01:41]}  Rf8 {[%clk 0:00:36]} 36. g4 {[%clk 0:01:42]}  f5 {[%clk 0:00:35]} 37. exf5 {[%clk 0:01:40]}  exf5 {[%clk 0:00:36]} 38. g5 {[%clk 0:01:41]}  Nd8 {[%clk 0:00:34]} 39. Rxh3 {[%clk 0:01:37]}  Ne6 {[%clk 0:00:34]} 40. Rf3 {[%clk 0:01:37]}  d5 {[%clk 0:00:31]} 41. h4 {[%clk 0:01:33]}  d4 {[%clk 0:00:31]} 42. Rf1 {[%clk 0:01:32]}  dxc3 {[%clk 0:00:30]} 43. Kxc3 {[%clk 0:01:32]}  Bd6 {[%clk 0:00:30]} 44. Be2 {[%clk 0:01:30]}  Kb6 {[%clk 0:00:29]} 45. Bd3 {[%clk 0:01:29]}  Nxf4 {[%clk 0:00:28]} 46. Bxf5 {[%clk 0:01:29]}  Ne2+ {[%clk 0:00:28]} 47. Kd3 {[%clk 0:01:28]}  Ng3 {[%clk 0:00:29]} 48. Rf3 {[%clk 0:01:28]}  Nxf5 {[%clk 0:00:28]} 49. Rxf5 {[%clk 0:01:29]}  Bxb4 {[%clk 0:00:28]} 50. h5 {[%clk 0:01:29]}  Rd8+ {[%clk 0:00:21]} 51. Ke4 {[%clk 0:01:24]}  Rd7 {[%clk 0:00:20]} 52. h6 {[%clk 0:01:23]}  Bc3 {[%clk 0:00:20]} 53. h7 {[%clk 0:01:18]}  b4 {[%clk 0:00:20]} 54. Rf3 {[%clk 0:01:11]}  Rd8 {[%clk 0:00:17]} 55. Rxf7 {[%clk 0:01:10]}  b3 {[%clk 0:00:16]} 56. Rf1 {[%clk 0:00:51]}  b2 {[%clk 0:00:15]} 57. g6 {[%clk 0:00:46]}  Kb5 {[%clk 0:00:15]} 58. Ke3 {[%clk 0:00:33]}  Kc4 {[%clk 0:00:14]} 59. Rg1 {[%clk 0:00:18]}  Re8+ {[%clk 0:00:13]} 60. Kf3 {[%clk 0:00:17]}  Kb3 {[%clk 0:00:11]} 61. g7 {[%clk 0:00:17]}  Bxg7 {[%clk 0:00:11]} 62. Rxg7 {[%clk 0:00:18]}  b1=Q {[%clk 0:00:09]} 63. Rb7+ {[%clk 0:00:17]}  Kc2 {[%clk 0:00:09]} 64. Rc7+ {[%clk 0:00:17]}  Kd2 {[%clk 0:00:08]} 65. Rd7+ {[%clk 0:00:17]}  Qd3+ {[%clk 0:00:07]} 66. Rxd3+ {[%clk 0:00:16]}  Kxd3 {[%clk 0:00:07]} 67. Kf4 {[%clk 0:00:17]}  Rh8 {[%clk 0:00:08]} 68. Kg5 {[%clk 0:00:18]}  Rxh7 {[%clk 0:00:09]} 69. Kg6 {[%clk 0:00:19]}  Rd7 {[%clk 0:00:09]} 70. Kf6 {[%clk 0:00:20]}  Kd4 {[%clk 0:00:09]} 71. Ke6 {[%clk 0:00:21]}  Rd5 {[%clk 0:00:10]} 72. Kf7 {[%clk 0:00:21]}  Re5 {[%clk 0:00:11]} 73. Kf6 {[%clk 0:00:22]}  Kd5 {[%clk 0:00:11]} 74. Kg6 {[%clk 0:00:23]}  Ke6 {[%clk 0:00:11]} 75. Kg7 {[%clk 0:00:23]}  Rg5+ {[%clk 0:00:12]} 76. Kh6 {[%clk 0:00:24]}  Kf6 {[%clk 0:00:12]} 0-1


[Site "https://www.chess.com"]

[Event "Titled Tuesday Blitz November 01 Late 2022"]
[White "Jaferian, Koosha"]
[Black "Zierk, Steven"]
[WhiteFideId "12507440"]
[BlackFideId "2034255"]
[WhiteElo "2127"]
[BlackElo "2494"]
[Result "1/2-1/2"]
[Round "03"]
[TimeControl "180+1"]
[Date "2022.11.01"]
[WhiteClock "0:00:28"]
[BlackClock "0:00:05"]

1. e4 {[%clk 0:03:00]}  e6 {[%clk 0:02:55]} 2. d4 {[%clk 0:03:00]}  d5 {[%clk 0:02:55]} 3. Bd3 {[%clk 0:03:01]}  dxe4 {[%clk 0:02:55]} 4. Bxe4 {[%clk 0:03:02]}  Nf6 {[%clk 0:02:55]} 5. Bf3 {[%clk 0:03:02]}  c5 {[%clk 0:02:56]} 6. Ne2 {[%clk 0:03:03]}  Nc6 {[%clk 0:02:56]} 7. Be3 {[%clk 0:03:03]}  cxd4 {[%clk 0:02:57]} 8. Nxd4 {[%clk 0:03:04]}  Ne5 {[%clk 0:02:57]} 9. Nc3 {[%clk 0:03:05]}  Nxf3+ {[%clk 0:02:55]} 10. Qxf3 {[%clk 0:03:05]}  e5 {[%clk 0:02:55]} 11. Ndb5 {[%clk 0:03:02]}  Bb4 {[%clk 0:02:49]} 12. O-O {[%clk 0:02:46]}  O-O {[%clk 0:02:47]} 13. a3 {[%clk 0:02:33]}  Bxc3 {[%clk 0:02:44]} 14. Nxc3 {[%clk 0:02:34]}  Qe7 {[%clk 0:02:35]} 15. Bg5 {[%clk 0:02:32]}  Qe6 {[%clk 0:02:28]} 16. Rfe1 {[%clk 0:02:24]}  h6 {[%clk 0:02:20]} 17. Bxf6 {[%clk 0:02:24]}  Qxf6 {[%clk 0:02:20]} 18. Qxf6 {[%clk 0:02:21]}  gxf6 {[%clk 0:02:21]} 19. Nd5 {[%clk 0:02:22]}  Kg7 {[%clk 0:02:19]} 20. Re3 {[%clk 0:02:19]}  Bf5 {[%clk 0:02:06]} 21. Rg3+ {[%clk 0:02:18]}  Bg6 {[%clk 0:02:06]} 22. Ne7 {[%clk 0:02:13]}  Rad8 {[%clk 0:02:01]} 23. Nxg6 {[%clk 0:01:51]}  fxg6 {[%clk 0:02:01]} 24. Rc3 {[%clk 0:01:48]}  Rd2 {[%clk 0:01:56]} 25. Kf1 {[%clk 0:01:48]}  Rfd8 {[%clk 0:01:47]} 26. Ke1 {[%clk 0:01:47]}  R2d7 {[%clk 0:01:37]} 27. Ke2 {[%clk 0:01:31]}  f5 {[%clk 0:01:35]} 28. Rd3 {[%clk 0:01:24]}  Rxd3 {[%clk 0:01:34]} 29. cxd3 {[%clk 0:01:25]}  Rc8 {[%clk 0:01:34]} 30. Kd2 {[%clk 0:01:25]}  Kf6 {[%clk 0:01:34]} 31. Rc1 {[%clk 0:01:23]}  Rxc1 {[%clk 0:01:29]} 32. Kxc1 {[%clk 0:01:24]}  Ke6 {[%clk 0:01:29]} 33. Kd2 {[%clk 0:01:21]}  Kd5 {[%clk 0:01:29]} 34. Kc3 {[%clk 0:01:14]}  a5 {[%clk 0:01:15]} 35. h4 {[%clk 0:01:07]}  g5 {[%clk 0:01:11]} 36. hxg5 {[%clk 0:01:06]}  hxg5 {[%clk 0:01:12]} 37. f3 {[%clk 0:01:06]}  a4 {[%clk 0:01:08]} 38. Kc2 {[%clk 0:01:03]}  Kc5 {[%clk 0:00:40]} 39. Kc3 {[%clk 0:01:02]}  b5 {[%clk 0:00:37]} 40. Kc2 {[%clk 0:00:59]}  b4 {[%clk 0:00:34]} 41. axb4+ {[%clk 0:00:58]}  Kxb4 {[%clk 0:00:35]} 42. Kc1 {[%clk 0:00:55]}  Kc5 {[%clk 0:00:20]} 43. Kc2 {[%clk 0:00:53]}  Kd4 {[%clk 0:00:19]} 44. Kd2 {[%clk 0:00:53]}  e4 {[%clk 0:00:18]} 45. dxe4 {[%clk 0:00:48]}  fxe4 {[%clk 0:00:19]} 46. fxe4 {[%clk 0:00:49]}  Kxe4 {[%clk 0:00:20]} 47. Ke2 {[%clk 0:00:49]}  Kd4 {[%clk 0:00:17]} 48. Kd2 {[%clk 0:00:49]}  g4 {[%clk 0:00:17]} 49. g3 {[%clk 0:00:47]}  Ke4 {[%clk 0:00:16]} 50. Ke2 {[%clk 0:00:48]}  Kd4 {[%clk 0:00:15]} 51. Kd2 {[%clk 0:00:48]}  Kc4 {[%clk 0:00:15]} 52. Kc2 {[%clk 0:00:48]}  Kb4 {[%clk 0:00:15]} 53. Kb1 {[%clk 0:00:29]}  Kb3 {[%clk 0:00:13]} 54. Ka1 {[%clk 0:00:28]}  a3 {[%clk 0:00:13]} 55. Kb1 {[%clk 0:00:28]}  axb2 {[%clk 0:00:05]} 1/2-1/2


[Site "https://www.chess.com"]

[Event "Titled Tuesday Blitz November 01 Late 2022"]
[White "Karas, Marek"]
[Black "Haszon, David"]
[WhiteFideId "14928558"]
[BlackFideId "733610"]
[WhiteElo "2220"]
[BlackElo "2211"]
[Result "1-0"]
[Round "03"]
[TimeControl "180+1"]
[Date "2022.11.02"]
[WhiteClock "0:00:22"]
[BlackClock "0:00:07"]

1. d4 {[%clk 0:03:00]}  Nf6 {[%clk 0:02:57]} 2. Bf4 {[%clk 0:02:58]}  d5 {[%clk 0:02:57]} 3. Nf3 {[%clk 0:02:58]}  c5 {[%clk 0:02:58]} 4. e3 {[%clk 0:02:58]}  Nc6 {[%clk 0:02:58]} 5. Nbd2 {[%clk 0:02:58]}  Qb6 {[%clk 0:02:56]} 6. dxc5 {[%clk 0:02:58]}  Qxb2 {[%clk 0:02:54]} 7. Rb1 {[%clk 0:02:57]}  Qa3 {[%clk 0:02:54]} 8. Bb5 {[%clk 0:02:58]}  Qxc5 {[%clk 0:02:52]} 9. c4 {[%clk 0:02:57]}  e6 {[%clk 0:02:50]} 10. Nb3 {[%clk 0:02:37]}  Qb4+ {[%clk 0:02:46]} 11. Nfd2 {[%clk 0:02:32]}  dxc4 {[%clk 0:02:40]} 12. Nd4 {[%clk 0:02:23]}  Qc5 {[%clk 0:02:36]} 13. Nxc4 {[%clk 0:01:49]}  Bd7 {[%clk 0:02:28]} 14. O-O {[%clk 0:01:44]}  Nd5 {[%clk 0:02:12]} 15. Bxc6 {[%clk 0:01:30]}  bxc6 {[%clk 0:02:00]} 16. Ne5 {[%clk 0:01:26]}  Nc3 {[%clk 0:00:58]} 17. Qd3 {[%clk 0:00:59]}  Nxb1 {[%clk 0:00:43]} 18. Nb5 {[%clk 0:00:58]}  O-O-O {[%clk 0:00:28]} 19. Nxa7+ {[%clk 0:00:31]}  Qxa7 {[%clk 0:00:27]} 20. Nxf7 {[%clk 0:00:31]}  Be7 {[%clk 0:00:23]} 21. Rxb1 {[%clk 0:00:25]}  Rhf8 {[%clk 0:00:13]} 22. Qa6+ {[%clk 0:00:22]}  Qxa6 {[%clk 0:00:07]} 23. Rb8# {[%clk 0:00:22]} 1-0


[Site "https://www.chess.com"]

[Event "Titled Tuesday Blitz November 01 Late 2022"]
[White "Kekic, Armin"]
[Black "Castellanos Gomez, Alejandro"]
[WhiteFideId "14401274"]
[BlackFideId "22284141"]
[WhiteElo "2132"]
[BlackElo "2168"]
[Result "0-1"]
[Round "03"]
[TimeControl "180+1"]
[Date "2022.11.02"]
[WhiteClock "0:00:05"]
[BlackClock "0:00:07"]

1. e4 {[%clk 0:03:00]}  e6 {[%clk 0:02:59]} 2. d4 {[%clk 0:02:59]}  d5 {[%clk 0:03:00]} 3. exd5 {[%clk 0:03:00]}  exd5 {[%clk 0:03:00]} 4. Bd3 {[%clk 0:03:01]}  Nf6 {[%clk 0:03:01]} 5. Ne2 {[%clk 0:03:01]}  Bd6 {[%clk 0:03:01]} 6. Bf4 {[%clk 0:03:01]}  O-O {[%clk 0:03:01]} 7. O-O {[%clk 0:03:01]}  Bg4 {[%clk 0:03:02]} 8. f3 {[%clk 0:03:00]}  Bh5 {[%clk 0:03:02]} 9. c3 {[%clk 0:03:00]}  Re8 {[%clk 0:02:59]} 10. Bxd6 {[%clk 0:03:00]}  Qxd6 {[%clk 0:02:58]} 11. Nd2 {[%clk 0:02:59]}  Nbd7 {[%clk 0:02:58]} 12. Re1 {[%clk 0:02:56]}  Re7 {[%clk 0:02:52]} 13. Nf1 {[%clk 0:02:53]}  Rae8 {[%clk 0:02:50]} 14. Qd2 {[%clk 0:02:53]}  Nf8 {[%clk 0:02:41]} 15. Neg3 {[%clk 0:02:45]}  Bg6 {[%clk 0:02:41]} 16. Nf5 {[%clk 0:02:36]}  Bxf5 {[%clk 0:02:41]} 17. Bxf5 {[%clk 0:02:36]}  g6 {[%clk 0:02:42]} 18. Bd3 {[%clk 0:02:35]}  Kg7 {[%clk 0:02:42]} 19. Rxe7 {[%clk 0:02:28]}  Qxe7 {[%clk 0:02:40]} 20. Kf2 {[%clk 0:02:28]}  h5 {[%clk 0:02:37]} 21. Re1 {[%clk 0:02:28]}  Ne6 {[%clk 0:02:35]} 22. g3 {[%clk 0:02:06]}  Qd6 {[%clk 0:02:26]} 23. Re2 {[%clk 0:01:46]}  h4 {[%clk 0:02:24]} 24. a3 {[%clk 0:01:31]}  Rh8 {[%clk 0:02:20]} 25. Kg2 {[%clk 0:01:21]}  hxg3 {[%clk 0:02:11]} 26. hxg3 {[%clk 0:01:22]}  Qd7 {[%clk 0:02:12]} 27. Kg1 {[%clk 0:01:18]}  Nh7 {[%clk 0:01:44]} 28. Rh2 {[%clk 0:01:11]}  Neg5 {[%clk 0:01:39]} 29. Kg2 {[%clk 0:01:09]}  Qd6 {[%clk 0:01:10]} 30. Qe3 {[%clk 0:00:51]}  Qf6 {[%clk 0:01:09]} 31. f4 {[%clk 0:00:42]}  Ne6 {[%clk 0:01:05]} 32. Qe5 {[%clk 0:00:42]}  Qxe5 {[%clk 0:01:04]} 33. fxe5 {[%clk 0:00:42]}  c6 {[%clk 0:01:02]} 34. Ne3 {[%clk 0:00:42]}  Rf8 {[%clk 0:01:01]} 35. Ng4 {[%clk 0:00:41]}  Rc8 {[%clk 0:00:54]} 36. Kf2 {[%clk 0:00:23]}  c5 {[%clk 0:00:54]} 37. Ke3 {[%clk 0:00:23]}  cxd4+ {[%clk 0:00:54]} 38. cxd4 {[%clk 0:00:24]}  Rc1 {[%clk 0:00:54]} 39. Rc2 {[%clk 0:00:20]}  Rg1 {[%clk 0:00:54]} 40. Kf2 {[%clk 0:00:19]}  Rd1 {[%clk 0:00:54]} 41. Ke2 {[%clk 0:00:17]}  Rh1 {[%clk 0:00:45]} 42. Ke3 {[%clk 0:00:17]}  Nhg5 {[%clk 0:00:40]} 43. Nf6 {[%clk 0:00:13]}  Rh3 {[%clk 0:00:38]} 44. Rc8 {[%clk 0:00:11]}  Nf8 {[%clk 0:00:13]} 45. Kf2 {[%clk 0:00:09]}  Rh2+ {[%clk 0:00:12]} 46. Ke3 {[%clk 0:00:10]}  Nge6 {[%clk 0:00:09]} 47. Rc2 {[%clk 0:00:06]}  Rh3 {[%clk 0:00:07]} 48. Rg2 {[%clk 0:00:01]}  Rh1 {[%clk 0:00:06]} 49. Bb5 {[%clk 0:00:01]}  Re1+ {[%clk 0:00:06]} 50. Kd3 {[%clk 0:00:01]}  Rd1+ {[%clk 0:00:05]} 51. Rd2 {[%clk 0:00:02]}  Rxd2+ {[%clk 0:00:05]} 52. Kxd2 {[%clk 0:00:02]}  Nxd4 {[%clk 0:00:05]} 53. Be8 {[%clk 0:00:03]}  Nf3+ {[%clk 0:00:05]} 54. Ke3 {[%clk 0:00:02]}  Nxe5 {[%clk 0:00:05]} 55. Nxd5 {[%clk 0:00:03]}  Nc4+ {[%clk 0:00:05]} 56. Kd4 {[%clk 0:00:02]}  Nxb2 {[%clk 0:00:06]} 57. Kc3 {[%clk 0:00:02]}  Nd1+ {[%clk 0:00:06]} 58. Kd2 {[%clk 0:00:03]}  Nf2 {[%clk 0:00:06]} 59. Ke3 {[%clk 0:00:04]}  Ng4+ {[%clk 0:00:06]} 60. Kf4 {[%clk 0:00:05]}  Nf6 {[%clk 0:00:06]} 61. Ne7 {[%clk 0:00:05]}  Ne6+ {[%clk 0:00:06]} 62. Ke5 {[%clk 0:00:05]}  Nxe8 {[%clk 0:00:07]} 0-1


[Site "https://www.chess.com"]